fUSD/lending_fUSD_20260501
["ID","MTS","AMOUNT","RATE_DAILY","PERIOD"]
[421419126,1777608640000,-299.99,0.00013699,2]
[421419125,1777608640000,-999.99,0.00013699,2]
[421419132,1777608640000,-378.0,0.00013699,2]
[421419124,1777608640000,-432.59,0.00013699,2]
[421419133,1777608640000,-378.0,0.00013699,2]
[421419187,1777608641000,-500.0,0.00013699,2]
[421419189,1777608641000,-500.0,0.00013699,2]
[421419186,1777608641000,-500.0,0.00013699,2]
[421419185,1777608641000,-500.0,0.00013699,2]
[421419184,1777608641000,-500.0,0.00013699,2]
[421419188,1777608641000,-500.0,0.00013699,2]
[421419182,1777608641000,-500.0,0.00013699,2]
[421419191,1777608641000,-500.0,0.00013699,2]
[421419181,1777608641000,-1000.0,0.00013699,2]
[421419180,1777608641000,-153.25029181,0.00013699,2]
[421419183,1777608641000,-500.0,0.00013699,2]
[421419190,1777608641000,-500.0,0.00013699,2]
[421419199,1777608641000,-500.0,0.00013699,2]
[421419192,1777608641000,-500.0,0.00013699,2]
[421419194,1777608641000,-500.0,0.00013699,2]
[421419196,1777608641000,-500.0,0.00013699,2]
[421419195,1777608641000,-500.0,0.00013699,2]
[421419197,1777608641000,-500.0,0.00013699,2]
[421419202,1777608641000,-500.0,0.00013699,2]
[421419201,1777608641000,-500.0,0.00013699,2]
[421419200,1777608641000,-500.0,0.00013699,2]
[421419198,1777608641000,-500.0,0.00013699,2]
[421419204,1777608641000,-298.53134704,0.00013741,2]
[421419177,1777608641000,-379.0,0.00013699,2]
[421419203,1777608641000,-2351.0,0.00013734,2]
[421419193,1777608641000,-160.47586116,0.00013699,2]
[421419179,1777608641000,-379.0,0.00013699,2]
[421419157,1777608641000,-375.0,0.00013699,2]
[421419175,1777608641000,-379.0,0.00013699,2]
[421419205,1777608641000,-500.0,0.00013764,2]
[421419152,1777608641000,-375.0,0.00013699,2]
[421419154,1777608641000,-375.0,0.00013699,2]
[421419153,1777608641000,-375.0,0.00013699,2]
[421419151,1777608641000,-375.0,0.00013699,2]
[421419155,1777608641000,-375.0,0.00013699,2]
[421419156,1777608641000,-375.0,0.00013699,2]
[421419158,1777608641000,-375.0,0.00013699,2]
[421419159,1777608641000,-375.0,0.00013699,2]
[421419161,1777608641000,-375.0,0.00013699,2]
[421419160,1777608641000,-375.0,0.00013699,2]
[421419165,1777608641000,-375.0,0.00013699,2]
[421419164,1777608641000,-375.0,0.00013699,2]
[421419162,1777608641000,-375.0,0.00013699,2]
[421419163,1777608641000,-375.0,0.00013699,2]
[421419167,1777608641000,-375.0,0.00013699,2]
[421419166,1777608641000,-375.0,0.00013699,2]
[421419169,1777608641000,-379.0,0.00013699,2]
[421419168,1777608641000,-422.61774381,0.00013699,2]
[421419170,1777608641000,-379.0,0.00013699,2]
[421419171,1777608641000,-379.0,0.00013699,2]
[421419173,1777608641000,-379.0,0.00013699,2]
[421419176,1777608641000,-246.0,0.00013699,2]
[421419172,1777608641000,-379.0,0.00013699,2]
[421419174,1777608641000,-379.0,0.00013699,2]
[421419178,1777608641000,-379.0,0.00013699,2]
[421419206,1777608641000,-323.59693439,0.00014145,2]
[421419232,1777608641000,-970.6338851,0.00018299,2]
[421419208,1777608641000,-3532.0,0.00014487,2]
[421419237,1777608641000,-1004.07861141,0.00020448,2]
[421419238,1777608641000,-185.37,0.00020594,2]
[421419242,1777608641000,-500.0,0.00021513,2]
[421419241,1777608641000,-500.0,0.00021513,2]
[421419244,1777608641000,-1000.0,0.00022136,2]
[421419243,1777608641000,-970.6338851,0.00021513,2]
[421419245,1777608641000,-150.0,0.00022329,2]
[421419246,1777608641000,-264.2,0.00022329,2]
[421419249,1777608641000,-190.0,0.000245,2]
[421419247,1777608641000,-198.72,0.00022799,2]
[421419248,1777608641000,-190.0,0.000245,2]
[421419250,1777608641000,-1623.47299493,0.00024626,2]
[421419239,1777608641000,-255.81,0.00020594,2]
[421419252,1777608641000,-166.95260391,0.00024673,2]
[421419253,1777608641000,-970.6338851,0.00024728,2]
[421419259,1777608641000,-36773.31217228,0.00027898,2]
[421419255,1777608641000,-2000.0,0.00025547,2]
[421419257,1777608641000,-190.94551754,0.000273,30]
[421419256,1777608641000,-504.0,0.00027137,2]
[421419258,1777608641000,-581.86341855,0.00027396,2]
[421419261,1777608641000,-2012.98498412,0.00028352,2]
[421419262,1777608641000,-94089.0,0.000287,2]
[421419260,1777608641000,-970.6338851,0.00027942,2]
[421419263,1777608641000,-1623.47299493,0.00028944,2]
[421419264,1777608641000,-5528.0,0.000296,3]
[421419207,1777608641000,-1000.0,0.00014221,2]
[421419254,1777608641000,-291.31053163,0.00025053,2]
[421419240,1777608641000,-36773.31217228,0.00021447,2]
[421419251,1777608641000,-36773.31217228,0.00024672,2]
[421419234,1777608641000,-500.0,0.000199,2]
[421419236,1777608641000,-374.0,0.00020231,7]
[421419210,1777608641000,-1278.647,0.00014487,2]
[421419211,1777608641000,-150.0,0.00014487,2]
[421419212,1777608641000,-1663.0,0.00014487,2]
[421419213,1777608641000,-6037.0,0.00014487,2]
[421419214,1777608641000,-1008.5716395,0.00014768,2]
[421419215,1777608641000,-250.0,0.00014793,2]
[421419217,1777608641000,-150.0,0.00014942,2]
[421419216,1777608641000,-150.0,0.00014941,2]
[421419219,1777608641000,-36773.31217228,0.00014996,2]
[421419218,1777608641000,-736.0,0.00014946,2]
[421419227,1777608641000,-400.0,0.0001547,2]
[421419221,1777608641000,-823.0,0.00015046,2]
[421419209,1777608641000,-623.0,0.00014487,2]
[421419222,1777608641000,-970.6338851,0.00015084,2]
[421419223,1777608641000,-3292.0,0.00015108,2]
[421419233,1777608641000,-502.93754583,0.000199,2]
[421419229,1777608641000,-6035.0,0.00017487,2]
[421419231,1777608641000,-36773.31217228,0.00018221,2]
[421419230,1777608641000,-923.03991213,0.00018211,2]
[421419235,1777608641000,-411.0,0.00020231,7]
[421419220,1777608641000,-150.0,0.00015017,2]
[421419228,1777608641000,-500.0,0.00016115,2]
[421419226,1777608641000,-700.0,0.0001547,2]
[421419224,1777608641000,-503.28830134,0.00015139,2]
[421419225,1777608641000,-501.4160514,0.00015139,2]
[421419306,1777608642000,-776.65154675,0.00035,120]
[421419303,1777608642000,-36773.31217228,0.00034349,2]
[421419301,1777608642000,-173.677185,0.00033662,120]
[421419300,1777608642000,-161.606126,0.00033662,21]
[421419304,1777608642000,-151.0,0.00034349,7]
[421419297,1777608642000,-628.698589,0.00033662,120]
[421419298,1777608642000,-967.20325,0.00033662,120]
[421419294,1777608642000,-1623.47299493,0.00033263,2]
[421419296,1777608642000,-897.162225,0.00033662,120]
[421419305,1777608642000,-970.6338851,0.00034371,2]
[421419295,1777608642000,-232.203507,0.00033551,21]
[421419302,1777608642000,-776.65154675,0.000339,120]
[421419307,1777608642000,-845.634848,0.00035076,21]
[421419313,1777608642000,-150.0,0.00036,30]
[421419308,1777608642000,-603.011733,0.00035076,21]
[421419310,1777608642000,-591.9658418,0.00035679,5]
[421419312,1777608642000,-776.65154675,0.00036,120]
[421419311,1777608642000,-296.39649663,0.00035798,2]
[421419315,1777608642000,-150.0,0.00036,7]
[421419316,1777608642000,-150.0,0.00036,7]
[421419314,1777608642000,-150.0,0.00036,7]
[421419317,1777608642000,-150.0,0.00036,7]
[421419320,1777608642000,-150.0,0.00036,7]
[421419324,1777608642000,-3798.0,0.000361,7]
[421419321,1777608642000,-150.0,0.00036,7]
[421419299,1777608642000,-161.606125,0.00033662,120]
[421419309,1777608642000,-1456.85287576,0.00035679,5]
[421419292,1777608642000,-776.65154675,0.00033,120]
[421419265,1777608642000,-691.64153846,0.00030492,2]
[421419288,1777608642000,-164.0,0.00032157,30]
[421419322,1777608642000,-150.0,0.00036,7]
[421419267,1777608642000,-2174.48961,0.00030501,120]
[421419266,1777608642000,-5528.0,0.000305,5]
[421419268,1777608642000,-161.073304,0.00030501,14]
[421419270,1777608642000,-172.289066,0.00030501,14]
[421419269,1777608642000,-1608.031288,0.00030501,120]
[421419272,1777608642000,-190.758114,0.00030501,14]
[421419271,1777608642000,-214.934056,0.00030501,14]
[421419273,1777608642000,-722.41091,0.00030501,120]
[421419274,1777608642000,-5000.0,0.00031023,2]
[421419275,1777608642000,-500.0,0.00031041,2]
[421419276,1777608642000,-163.46002488,0.00031057,3]
[421419293,1777608642000,-501.0,0.00033205,2]
[421419277,1777608642000,-193.53,0.000311,2]
[421419278,1777608642000,-361.36,0.000311,2]
[421419281,1777608642000,-162.0,0.00031157,30]
[421419280,1777608642000,-970.6338851,0.00031157,2]
[421419284,1777608642000,-886.66666666,0.000316,2]
[421419282,1777608642000,-886.66666668,0.000316,2]
[421419286,1777608642000,-288.6446471,0.00031796,60]
[421419285,1777608642000,-625.2081967,0.00031796,60]
[421419287,1777608642000,-776.65154675,0.00032,120]
[421419283,1777608642000,-886.66666666,0.000316,2]
[421419289,1777608642000,-504.0,0.00032423,7]
[421419290,1777608642000,-2871.834,0.00032877,33]
[421419291,1777608642000,-150.729,0.00032877,33]
[421419279,1777608642000,-36773.31217228,0.00031123,2]
[421419319,1777608642000,-168.25248826,0.00036,7]
[421419346,1777608642000,-150.0,0.00036533,7]
[421419325,1777608642000,-150.0,0.00036107,7]
[421419357,1777608642000,-150.0,0.000368,7]
[421419359,1777608642000,-150.0,0.00036842,30]
[421419360,1777608642000,-150.0,0.00036842,7]
[421419358,1777608642000,-150.0,0.000368,7]
[421419356,1777608642000,-150.0,0.00036747,7]
[421419361,1777608642000,-150.0,0.00036853,7]
[421419363,1777608642000,-150.0,0.00036857,7]
[421419364,1777608642000,-1186.61299779,0.0003686,2]
[421419362,1777608642000,-150.0,0.00036857,7]
[421419366,1777608642000,-150.0,0.00036889,7]
[421419365,1777608642000,-150.48,0.00036879,2]
[421419368,1777608642000,-500.0,0.00036907,120]
[421419354,1777608642000,-150.0,0.00036693,7]
[421419369,1777608642000,-500.0,0.00036907,120]
[421419373,1777608642000,-150.0,0.0003696,7]
[421419377,1777608642000,-150.0,0.00037013,7]
[421419372,1777608642000,-264701.77198594,0.00036908,2]
[421419370,1777608642000,-485.728556,0.00036908,2]
[421419376,1777608642000,-150.0,0.00037,7]
[421419375,1777608642000,-150.0,0.00037,7]
[421419371,1777608642000,-8011.36685006,0.00036908,2]
[421419379,1777608642000,-150.0,0.00037053,30]
[421419378,1777608642000,-288.373572,0.00037028,21]
[421419380,1777608642000,-150.0,0.00037053,7]
[421419381,1777608642000,-150.0,0.00037067,7]
[421419323,1777608642000,-150.0,0.00036053,7]
[421419374,1777608642000,-500.0,0.00036973,5]
[421419355,1777608642000,-150.0,0.00036714,7]
[421419367,1777608642000,-150.0,0.00036907,7]
[421419352,1777608642000,-150.0,0.00036632,30]
[421419353,1777608642000,-150.0,0.0003664,7]
[421419327,1777608642000,-150.0,0.0003616,7]
[421419329,1777608642000,-150.0,0.00036211,7]
[421419328,1777608642000,-150.0,0.00036211,30]
[421419330,1777608642000,-150.0,0.00036213,7]
[421419331,1777608642000,-150.0,0.00036267,7]
[421419332,1777608642000,-150.0,0.00036267,7]
[421419333,1777608642000,-150.0,0.00036286,7]
[421419334,1777608642000,-150.0,0.00036286,7]
[421419336,1777608642000,-150.0,0.0003632,7]
[421419337,1777608642000,-150.0,0.00036373,7]
[421419339,1777608642000,-150.0,0.00036421,7]
[421419338,1777608642000,-150.0,0.00036421,30]
[421419326,1777608642000,-150.0,0.00036143,7]
[421419340,1777608642000,-150.48,0.00036423,2]
[421419335,1777608642000,-214.99,0.00036319,2]
[421419347,1777608642000,-150.0,0.00036533,7]
[421419348,1777608642000,-150.0,0.00036571,7]
[421419345,1777608642000,-150.0,0.0003648,7]
[421419350,1777608642000,-150.0,0.00036587,7]
[421419382,1777608642000,-150.0,0.00037067,7]
[421419351,1777608642000,-150.0,0.00036632,7]
[421419344,1777608642000,-150.0,0.00036444,7]
[421419343,1777608642000,-150.48,0.00036429,2]
[421419342,1777608642000,-150.0,0.00036429,7]
[421419341,1777608642000,-150.0,0.00036427,7]
[421419349,1777608642000,-150.0,0.00036571,7]
[421419425,1777608643000,-150.0,0.00037714,7]
[421419422,1777608643000,-1724.97197996,0.00037685,2]
[421419421,1777608643000,-150.0,0.00037684,7]
[421419414,1777608643000,-36773.31217228,0.00037574,2]
[421419424,1777608643000,-504.0,0.0003771,13]
[421419418,1777608643000,-150.0,0.000376,7]
[421419419,1777608643000,-150.0,0.00037653,7]
[421419416,1777608643000,-970.6338851,0.00037586,2]
[421419417,1777608643000,-150.0,0.000376,7]
[421419411,1777608643000,-5000.0,0.00037522,2]
[421419423,1777608643000,-150.0,0.00037707,7]
[421419420,1777608643000,-150.0,0.00037684,30]
[421419426,1777608643000,-150.0,0.00037714,7]
[421419432,1777608643000,-150.0,0.00037813,7]
[421419428,1777608643000,-150.0,0.00037778,7]
[421419431,1777608643000,-1842.04,0.000378,30]
[421419429,1777608643000,-1842.043,0.000378,120]
[421419430,1777608643000,-1842.043,0.000378,120]
[421419434,1777608643000,-150.0,0.00037867,7]
[421419433,1777608643000,-150.0,0.00037857,7]
[421419439,1777608643000,-150.0,0.0003792,7]
[421419438,1777608643000,-193.53,0.000379,2]
[421419436,1777608643000,-150.0,0.00037895,120]
[421419440,1777608643000,-159.34,0.00037962,48]
[421419435,1777608643000,-150.0,0.00037867,7]
[421419413,1777608643000,-150.0,0.00037571,7]
[421419427,1777608643000,-150.0,0.0003776,7]
[421419410,1777608643000,-1001.13211831,0.00037521,5]
[421419384,1777608643000,-150.0,0.0003712,7]
[421419415,1777608643000,-1623.47299493,0.00037581,2]
[421419383,1777608643000,-150.48,0.00037114,14]
[421419386,1777608643000,-322.46,0.00037136,14]
[421419387,1777608643000,-350.0,0.00037142,10]
[421419385,1777608643000,-322.46,0.00037136,14]
[421419389,1777608643000,-150.0,0.00037143,7]
[421419388,1777608643000,-150.0,0.00037143,7]
[421419390,1777608643000,-150.0,0.00037173,7]
[421419392,1777608643000,-507.25922946,0.00037206,21]
[421419391,1777608643000,-187.41420932,0.000372,120]
[421419393,1777608643000,-150.0,0.00037227,7]
[421419394,1777608643000,-150.0,0.00037263,30]
[421419395,1777608643000,-150.0,0.00037263,7]
[421419409,1777608643000,-2000.0,0.000375,7]
[421419396,1777608643000,-150.0,0.0003728,7]
[421419397,1777608643000,-150.0,0.00037286,7]
[421419400,1777608643000,-150.0,0.00037333,7]
[421419399,1777608643000,-150.0,0.00037333,7]
[421419402,1777608643000,-150.0,0.00037387,7]
[421419401,1777608643000,-150.0,0.00037333,7]
[421419404,1777608643000,-150.0,0.00037429,7]
[421419403,1777608643000,-150.0,0.00037429,7]
[421419405,1777608643000,-150.0,0.0003744,7]
[421419406,1777608643000,-150.0,0.00037474,7]
[421419408,1777608643000,-150.0,0.00037493,7]
[421419407,1777608643000,-150.0,0.00037474,30]
[421419412,1777608643000,-150.0,0.00037547,7]
[421419398,1777608643000,-150.48,0.00037303,14]
[421419442,1777608643000,-150.0,0.00038,7]
[421419437,1777608643000,-150.0,0.00037895,7]
[421419443,1777608643000,-150.0,0.00038,7]
[421419475,1777608643000,-150.0,0.00038571,7]
[421419476,1777608643000,-150.0,0.00038571,7]
[421419478,1777608643000,-500.0,0.0003863,120]
[421419477,1777608643000,-150.0,0.00038613,7]
[421419481,1777608643000,-150.0,0.00038667,7]
[421419482,1777608643000,-150.0,0.00038667,7]
[421419479,1777608643000,-150.0,0.00038665,30]
[421419484,1777608643000,-244.493895,0.00038711,21]
[421419480,1777608643000,-150.0,0.00038667,7]
[421419483,1777608643000,-250.0,0.00038703,53]
[421419485,1777608643000,-376.134597,0.00038711,21]
[421419486,1777608643000,-150.0,0.00038714,7]
[421419487,1777608643000,-150.0,0.0003872,7]
[421419490,1777608643000,-155.43363071,0.00038737,2]
[421419489,1777608643000,-150.0,0.00038737,7]
[421419492,1777608643000,-700.0,0.0003877,2]
[421419491,1777608643000,-163.46002487,0.00038737,13]
[421419493,1777608643000,-400.0,0.0003877,2]
[421419495,1777608643000,-161.0,0.0003878,120]
[421419494,1777608643000,-150.0,0.00038773,7]
[421419497,1777608643000,-150.0,0.00038827,7]
[421419496,1777608643000,-63799.0,0.00038822,120]
[421419499,1777608643000,-500.0,0.00038836,120]
[421419498,1777608643000,-180.24,0.00038836,120]
[421419500,1777608643000,-500.0,0.00038836,120]
[421419501,1777608643000,-7260.2236227,0.00038837,2]
[421419441,1777608643000,-150.0,0.00037973,7]
[421419473,1777608643000,-312.08,0.00038558,2]
[421419474,1777608643000,-150.0,0.0003856,7]
[421419488,1777608643000,-150.0,0.00038737,120]
[421419470,1777608643000,-150.0,0.00038526,7]
[421419472,1777608643000,-200.0,0.00038539,20]
[421419444,1777608643000,-150.0,0.00038,7]
[421419447,1777608643000,-150.0,0.00038105,120]
[421419446,1777608643000,-150.0,0.0003808,7]
[421419449,1777608643000,-150.0,0.00038133,7]
[421419451,1777608643000,-150.0,0.00038143,7]
[421419452,1777608643000,-150.0,0.00038187,7]
[421419448,1777608643000,-150.0,0.00038105,7]
[421419450,1777608643000,-150.0,0.00038133,7]
[421419454,1777608643000,-150.0,0.0003824,7]
[421419453,1777608643000,-150.0,0.00038222,7]
[421419455,1777608643000,-150.0,0.00038286,7]
[421419457,1777608643000,-150.0,0.00038293,7]
[421419456,1777608643000,-150.0,0.00038286,7]
[421419445,1777608643000,-150.0,0.00038027,7]
[421419466,1777608643000,-150.0,0.00038453,7]
[421419458,1777608643000,-150.0,0.00038316,7]
[421419461,1777608643000,-456.56336485,0.00038355,30]
[421419460,1777608643000,-150.0,0.00038347,7]
[421419463,1777608643000,-150.0,0.000384,7]
[421419462,1777608643000,-500.0,0.00038356,120]
[421419464,1777608643000,-150.0,0.000384,7]
[421419465,1777608643000,-150.0,0.00038429,7]
[421419469,1777608643000,-150.0,0.00038526,120]
[421419459,1777608643000,-150.0,0.00038316,120]
[421419468,1777608643000,-150.0,0.00038507,7]
[421419467,1777608643000,-12000.4687209,0.0003847,2]
[421419471,1777608643000,-168.84,0.00038537,2]
[421419543,1777608644000,-500.0,0.00038839,7]
[421419542,1777608644000,-1536.04360649,0.00038839,7]
[421419535,1777608644000,-151.0,0.00038839,7]
[421419546,1777608644000,-151.0,0.00038839,7]
[421419544,1777608644000,-200.0,0.00038839,7]
[421419539,1777608644000,-200.0,0.00038839,7]
[421419534,1777608644000,-1481.23780761,0.00038839,7]
[421419538,1777608644000,-921.94501352,0.00038839,7]
[421419536,1777608644000,-500.0,0.00038839,7]
[421419537,1777608644000,-200.0,0.00038839,7]
[421419531,1777608644000,-743.50770149,0.00038839,7]
[421419545,1777608644000,-1592.87721993,0.00038839,7]
[421419540,1777608644000,-151.0,0.00038839,7]
[421419547,1777608644000,-500.0,0.00038839,7]
[421419559,1777608644000,-500.0,0.00038839,7]
[421419549,1777608644000,-200.0,0.00038839,7]
[421419548,1777608644000,-500.0,0.00038839,7]
[421419551,1777608644000,-151.0,0.00038839,7]
[421419550,1777608644000,-1651.81367706,0.00038839,7]
[421419558,1777608644000,-200.0,0.00038839,7]
[421419552,1777608644000,-500.0,0.00038839,7]
[421419554,1777608644000,-200.0,0.00038839,7]
[421419556,1777608644000,-151.0,0.00038839,7]
[421419553,1777608644000,-500.0,0.00038839,7]
[421419560,1777608644000,-200.0,0.00038839,7]
[421419555,1777608644000,-500.0,0.00038839,7]
[421419557,1777608644000,-282.61545435,0.00038839,7]
[421419541,1777608644000,-200.0,0.00038839,7]
[421419529,1777608644000,-200.0,0.00038839,7]
[421419503,1777608644000,-32591.011087,0.00038837,2]
[421419533,1777608644000,-200.0,0.00038839,7]
[421419502,1777608644000,-66174.7644122,0.00038837,2]
[421419506,1777608644000,-2029.631265,0.00038837,2]
[421419508,1777608644000,-151.0,0.00038837,30]
[421419504,1777608644000,-22740.344662,0.00038837,2]
[421419507,1777608644000,-151.0,0.00038837,30]
[421419509,1777608644000,-151.0,0.00038837,30]
[421419505,1777608644000,-7145.9290939,0.00038837,2]
[421419510,1777608644000,-6408.6742213,0.00038837,2]
[421419512,1777608644000,-151.0,0.00038837,30]
[421419511,1777608644000,-151.0,0.00038837,30]
[421419513,1777608644000,-151.0,0.00038837,30]
[421419514,1777608644000,-151.0,0.00038837,30]
[421419515,1777608644000,-182.945472,0.00038837,30]
[421419516,1777608644000,-219.017787,0.00038837,30]
[421419517,1777608644000,-219.017787,0.00038837,30]
[421419519,1777608644000,-219.017787,0.00038837,30]
[421419522,1777608644000,-151.0,0.00038837,7]
[421419520,1777608644000,-151.0,0.00038837,7]
[421419521,1777608644000,-151.0,0.00038837,7]
[421419518,1777608644000,-219.017787,0.00038837,30]
[421419523,1777608644000,-1802.39969195,0.00038839,6]
[421419525,1777608644000,-578.20924308,0.00038839,7]
[421419526,1777608644000,-200.0,0.00038839,7]
[421419524,1777608644000,-200.0,0.00038839,7]
[421419527,1777608644000,-609.04004091,0.00038839,7]
[421419530,1777608644000,-1428.38747117,0.00038839,7]
[421419528,1777608644000,-200.0,0.00038839,7]
[421419532,1777608644000,-200.0,0.00038839,7]
[421419562,1777608644000,-151.0,0.00038839,7]
[421419563,1777608644000,-500.0,0.00038839,7]
[421419565,1777608644000,-500.0,0.00038839,7]
[421419598,1777608644000,-201.93286099,0.00038839,7]
[421419597,1777608644000,-194.72792766,0.00038839,7]
[421419600,1777608644000,-217.15233878,0.00038839,7]
[421419607,1777608644000,-153.70235998,0.00038845,7]
[421419602,1777608644000,-161.0,0.0003884,120]
[421419604,1777608644000,-1534.0,0.00038845,7]
[421419599,1777608644000,-209.40437684,0.00038839,7]
[421419601,1777608644000,-225.18697531,0.00038839,7]
[421419603,1777608644000,-677.87486567,0.00038844,30]
[421419606,1777608644000,-1534.0,0.00038845,7]
[421419608,1777608644000,-1534.0,0.00038845,7]
[421419605,1777608644000,-1534.0,0.00038845,7]
[421419609,1777608644000,-1534.0,0.00038845,7]
[421419610,1777608644000,-1534.0,0.00038845,7]
[421419611,1777608644000,-1534.0,0.00038845,7]
[421419612,1777608644000,-1534.0,0.00038845,7]
[421419615,1777608644000,-1534.0,0.00038845,7]
[421419614,1777608644000,-1534.0,0.00038845,7]
[421419616,1777608644000,-1534.0,0.00038845,7]
[421419617,1777608644000,-1534.0,0.00038845,7]
[421419618,1777608644000,-1534.0,0.00038845,7]
[421419619,1777608644000,-1534.0,0.00038845,7]
[421419620,1777608644000,-1534.0,0.00038845,7]
[421419621,1777608644000,-1534.0,0.00038845,7]
[421419622,1777608644000,-1534.0,0.00038845,7]
[421419623,1777608644000,-1069.53959526,0.00038845,7]
[421419561,1777608644000,-500.0,0.00038839,7]
[421419596,1777608644000,-500.0,0.00038839,7]
[421419594,1777608644000,-500.0,0.00038839,7]
[421419613,1777608644000,-1534.0,0.00038845,7]
[421419590,1777608644000,-174.61919141,0.00038839,7]
[421419570,1777608644000,-151.0,0.00038839,7]
[421419564,1777608644000,-151.0,0.00038839,7]
[421419569,1777608644000,-500.0,0.00038839,7]
[421419566,1777608644000,-151.0,0.00038839,7]
[421419567,1777608644000,-500.0,0.00038839,7]
[421419568,1777608644000,-151.0,0.00038839,7]
[421419571,1777608644000,-151.0,0.00038839,7]
[421419574,1777608644000,-500.0,0.00038839,7]
[421419573,1777608644000,-151.0,0.00038839,7]
[421419575,1777608644000,-151.0,0.00038839,7]
[421419577,1777608644000,-151.0,0.00038839,7]
[421419578,1777608644000,-500.0,0.00038839,7]
[421419580,1777608644000,-500.0,0.00038839,7]
[421419572,1777608644000,-151.0,0.00038839,7]
[421419579,1777608644000,-151.0,0.00038839,7]
[421419582,1777608644000,-500.0,0.00038839,7]
[421419591,1777608644000,-500.0,0.00038839,7]
[421419592,1777608644000,-151.0,0.00038839,7]
[421419587,1777608644000,-151.0,0.00038839,7]
[421419595,1777608644000,-187.78006525,0.00038839,7]
[421419588,1777608644000,-500.0,0.00038839,7]
[421419589,1777608644000,-151.0,0.00038839,7]
[421419593,1777608644000,-181.08010149,0.00038839,7]
[421419586,1777608644000,-500.0,0.00038839,7]
[421419584,1777608644000,-500.0,0.00038839,7]
[421419581,1777608644000,-151.0,0.00038839,7]
[421419583,1777608644000,-151.0,0.00038839,7]
[421419576,1777608644000,-500.0,0.00038839,7]
[421419585,1777608644000,-151.0,0.00038839,7]
[421419624,1777608645000,-151.0,0.00038845,7]
[421419625,1777608645000,-256.86860233,0.00038845,7]
[421419626,1777608645000,-4505587.02968082,0.0003885,2]
[421419628,1777608645000,-2076.78409173,0.00027397,10]
[421419627,1777608645000,-928.447,0.00014604,2]
[421419631,1777608645000,-233.82,0.00021917,2]
[421419632,1777608645000,-200.0,0.00022765,2]
[421419629,1777608645000,-150.0,0.00011952,2]
[421419634,1777608645000,-220.5269,0.00027397,10]
[421419633,1777608645000,-200.0,0.00023612,2]
[421419630,1777608645000,-928.0,0.00017604,2]
[421419639,1777609553000,-4318.8706,0.00011352,2]
[421419640,1777609717000,-250.0,0.00011352,2]
[421419641,1777609717000,-184.0,0.00011352,2]
[421419642,1777609717000,-66.0,0.00011969,2]
[421419644,1777609718000,-250.0,0.00011969,2]
[421419643,1777609718000,-250.0,0.00011969,2]
[421419646,1777609719000,-250.0,0.00011969,2]
[421419645,1777609719000,-250.0,0.00011969,2]
[421419647,1777609720000,-134.0,0.00011969,2]
[421419648,1777609720000,-116.0,0.00011969,2]
[421419649,1777609721000,-132.0,0.00011969,2]
[421419650,1777609721000,-118.0,0.0001197,2]